[Event "Late-Titled-Tuesday-Blitz-January-23-2024"]
[Site "Chess.com"]
[Date "2024.01.23"]
[Round "5"]
[White "Harry_Rakkel"]
[Black "mbojan"]
[Result "1/2-1/2"]
[WhiteElo "2702"]
[BlackElo "2873"]
[TimeControl "180+1"]
[EndTime "14:55:56 PST"]
[Termination "Game drawn by repetition"]

1. e4 {[%clk 0:03:00.9]} 1... c5 {[%clk 0:02:59.1]} 2. Nf3 {[%clk 0:02:59.9]}
2... Nc6 {[%clk 0:02:59.6]} 3. d4 {[%clk 0:02:59.4]} 3... cxd4 {[%clk
0:02:59.6]} 4. Nxd4 {[%clk 0:02:59.3]} 4... Nf6 {[%clk 0:03:00.2]} 5. Nc3 {[%clk
0:02:58.4]} 5... e5 {[%clk 0:03:00.6]} 6. Ndb5 {[%clk 0:02:58.2]} 6... d6 {[%clk
0:03:01.2]} 7. Bg5 {[%clk 0:02:58.1]} 7... a6 {[%clk 0:03:01.2]} 8. Na3 {[%clk
0:02:58]} 8... b5 {[%clk 0:03:00.5]} 9. Nd5 {[%clk 0:02:57.2]} 9... Be7 {[%clk
0:03:00.3]} 10. Bxf6 {[%clk 0:02:57.2]} 10... Bxf6 {[%clk 0:03:00.1]} 11. c3
{[%clk 0:02:57.1]} 11... O-O {[%clk 0:02:59.3]} 12. Nc2 {[%clk 0:02:56.5]} 12...
Rb8 {[%clk 0:02:59.5]} 13. h4 {[%clk 0:02:55.3]} 13... g6 {[%clk 0:02:54.4]} 14.
g3 {[%clk 0:02:54.1]} 14... a5 {[%clk 0:02:46.8]} 15. a3 {[%clk 0:02:45.2]}
15... Bg7 {[%clk 0:02:39.8]} 16. h5 {[%clk 0:02:42.4]} 16... Be6 {[%clk
0:02:30.4]} 17. Nce3 {[%clk 0:02:33.5]} 17... Ne7 {[%clk 0:02:26.5]} 18. Bg2
{[%clk 0:01:56.5]} 18... Nxd5 {[%clk 0:02:08]} 19. Nxd5 {[%clk 0:01:55.3]} 19...
Qd7 {[%clk 0:02:08.4]} 20. Qd3 {[%clk 0:01:46.2]} 20... Rfc8 {[%clk 0:01:43]}
21. Rd1 {[%clk 0:01:38.2]} 21... Rc5 {[%clk 0:01:33.3]} 22. Ne3 {[%clk 0:01:31]}
22... b4 {[%clk 0:01:32.6]} 23. hxg6 {[%clk 0:01:24.1]} 23... hxg6 {[%clk
0:01:32.3]} 24. cxb4 {[%clk 0:01:18.3]} 24... axb4 {[%clk 0:01:32.4]} 25. Qxd6
{[%clk 0:01:15]} 25... Qxd6 {[%clk 0:01:31.6]} 26. Rxd6 {[%clk 0:01:14.7]} 26...
bxa3 {[%clk 0:01:23.4]} 27. bxa3 {[%clk 0:01:13.6]} 27... Rc1+ {[%clk
0:01:12.6]} 28. Ke2 {[%clk 0:01:05.5]} 28... Rxh1 {[%clk 0:00:55]} 29. Bxh1
{[%clk 0:01:04.9]} 29... Bf8 {[%clk 0:00:55.7]} 30. Rd3 {[%clk 0:00:56.9]} 30...
Rb2+ {[%clk 0:00:54.3]} 31. Kf3 {[%clk 0:00:52]} 31... Ra2 {[%clk 0:00:36.7]}
32. Bg2 {[%clk 0:00:49.2]} 32... Bxa3 {[%clk 0:00:35.3]} 33. Rd8+ {[%clk
0:00:37]} 33... Kg7 {[%clk 0:00:35.5]} 34. Ra8 {[%clk 0:00:37.7]} 34... Bc5
{[%clk 0:00:15.7]} 35. Rxa2 {[%clk 0:00:36.4]} 35... Bxa2 {[%clk 0:00:16.6]} 36.
Bf1 {[%clk 0:00:35.8]} 36... Be6 {[%clk 0:00:14.3]} 37. Bc4 {[%clk 0:00:34.4]}
37... Bd7 {[%clk 0:00:14]} 38. Bd5 {[%clk 0:00:34.4]} 38... f5 {[%clk
0:00:13.5]} 39. Nc4 {[%clk 0:00:28.7]} 39... Kf6 {[%clk 0:00:13.7]} 40. Kg2
{[%clk 0:00:27.7]} 40... Bb5 {[%clk 0:00:11.2]} 41. f3 {[%clk 0:00:26.9]} 41...
Bd4 {[%clk 0:00:09.1]} 42. Kh3 {[%clk 0:00:23.8]} 42... Ba4 {[%clk 0:00:08.1]}
43. Kg2 {[%clk 0:00:23.6]} 43... Bc2 {[%clk 0:00:08]} 44. Nd6 {[%clk 0:00:22.1]}
44... Bd3 {[%clk 0:00:07.3]} 45. Nc4 {[%clk 0:00:18.9]} 45... Bc2 {[%clk
0:00:07.5]} 46. Nd6 {[%clk 0:00:18.6]} 46... Bd3 {[%clk 0:00:07.5]} 47. Nc4
{[%clk 0:00:18.8]} 47... Be2 {[%clk 0:00:07.5]} 48. Nd6 {[%clk 0:00:18]} 48...
f4 {[%clk 0:00:05.3]} 49. g4 {[%clk 0:00:16.7]} 49... Bd3 {[%clk 0:00:05.2]} 50.
Bc4 {[%clk 0:00:13.5]} 50... Bc2 {[%clk 0:00:05.2]} 51. Bd5 {[%clk 0:00:13.6]}
51... Bd3 {[%clk 0:00:05.3]} 52. Bc4 {[%clk 0:00:13.1]} 52... Bc2 {[%clk
0:00:05.9]} 53. Bd5 {[%clk 0:00:13.3]} 53... Ba4 {[%clk 0:00:06.2]} 54. Nc4
{[%clk 0:00:13.3]} 54... Bb5 {[%clk 0:00:05.6]} 55. Nd6 {[%clk 0:00:13.1]} 55...
Bd7 {[%clk 0:00:05.7]} 56. Nc4 {[%clk 0:00:13]} 56... Ke7 {[%clk 0:00:05.5]} 57.
Nd2 {[%clk 0:00:12.3]} 57... Bb5 {[%clk 0:00:05.4]} 58. Nc4 {[%clk 0:00:11.7]}
58... g5 {[%clk 0:00:04.6]} 59. Kf1 {[%clk 0:00:10.9]} 59... Kd7 {[%clk
0:00:03.2]} 60. Ke2 {[%clk 0:00:11]} 60... Kc7 {[%clk 0:00:03.2]} 61. Kd3 {[%clk
0:00:10.9]} 61... Ba4 {[%clk 0:00:03.1]} 62. Kd2 {[%clk 0:00:10.5]} 62... Bb5
{[%clk 0:00:02]} 63. Kd3 {[%clk 0:00:10.4]} 63... Kd7 {[%clk 0:00:02.5]} 64. Kd2
{[%clk 0:00:10.5]} 64... Kd8 {[%clk 0:00:02.6]} 65. Kd3 {[%clk 0:00:10.5]} 65...
Kc7 {[%clk 0:00:03.3]} 66. Kd2 {[%clk 0:00:10.5]} 66... Ba4 {[%clk 0:00:04]} 67.
Ke2 {[%clk 0:00:09.6]} 67... Bb5 {[%clk 0:00:03.2]} 68. Kd2 {[%clk 0:00:09.7]}
68... Ba6 {[%clk 0:00:03.4]} 69. Ke2 {[%clk 0:00:09.5]} 69... Bc8 {[%clk
0:00:04.1]} 70. Kd2 {[%clk 0:00:09.5]} 70... Bd7 {[%clk 0:00:04.7]} 71. Ke2
{[%clk 0:00:09.7]} 71... Bb5 {[%clk 0:00:05.1]} 1/2-1/2

[Event "Late-Titled-Tuesday-Blitz-January-23-2024"]
[Site "Chess.com"]
[Date "2024.01.23"]
[Round "5"]
[White "Viktor_Poddubnyi"]
[Black "Mikhal867"]
[Result "0-1"]
[WhiteElo "2253"]
[BlackElo "2426"]
[TimeControl "180+1"]
[EndTime "14:55:57 PST"]
[Termination "Mikhal867 won on time"]

1. e4 {[%clk 0:03:00]} 1... g6 {[%clk 0:02:34.7]} 2. d4 {[%clk 0:02:59.5]} 2...
Bg7 {[%clk 0:02:34.2]} 3. c4 {[%clk 0:02:59]} 3... d6 {[%clk 0:02:32.9]} 4. Nc3
{[%clk 0:02:59]} 4... Nf6 {[%clk 0:02:33.5]} 5. Nf3 {[%clk 0:02:58.7]} 5... O-O
{[%clk 0:02:34.1]} 6. Be2 {[%clk 0:02:59]} 6... e5 {[%clk 0:02:34.7]} 7. O-O
{[%clk 0:02:59.1]} 7... Nc6 {[%clk 0:02:35.4]} 8. d5 {[%clk 0:02:59.5]} 8... Ne7
{[%clk 0:02:36]} 9. Kh1 {[%clk 0:03:00]} 9... Nd7 {[%clk 0:02:33]} 10. Ng1
{[%clk 0:02:55.9]} 10... f5 {[%clk 0:02:32.8]} 11. Bf3 {[%clk 0:02:55.9]} 11...
a5 {[%clk 0:02:30.6]} 12. Bd2 {[%clk 0:02:37.8]} 12... Nc5 {[%clk 0:02:29.9]}
13. Qe2 {[%clk 0:02:28.5]} 13... h6 {[%clk 0:02:09.9]} 14. b3 {[%clk 0:02:23.6]}
14... g5 {[%clk 0:02:09.7]} 15. exf5 {[%clk 0:02:12.5]} 15... Nxf5 {[%clk
0:02:09]} 16. Be4 {[%clk 0:02:04.4]} 16... Nd4 {[%clk 0:02:07.2]} 17. Qd1 {[%clk
0:02:00.3]} 17... g4 {[%clk 0:02:02.5]} 18. Be3 {[%clk 0:01:52.3]} 18... Bd7
{[%clk 0:01:56.3]} 19. Rc1 {[%clk 0:01:45.7]} 19... Qh4 {[%clk 0:01:54.7]} 20.
Nge2 {[%clk 0:01:32.2]} 20... Nxe4 {[%clk 0:01:34.7]} 21. Nxe4 {[%clk
0:01:31.5]} 21... Bf5 {[%clk 0:01:34.8]} 22. N4g3 {[%clk 0:01:25.3]} 22... Nxe2
{[%clk 0:01:23.2]} 23. Qxe2 {[%clk 0:01:25.1]} 23... Bh7 {[%clk 0:01:20.8]} 24.
Kg1 {[%clk 0:01:23.9]} 24... Kh8 {[%clk 0:01:17.3]} 25. c5 {[%clk 0:01:22.5]}
25... a4 {[%clk 0:00:56.7]} 26. b4 {[%clk 0:01:13.2]} 26... Bg6 {[%clk
0:00:49.5]} 27. cxd6 {[%clk 0:01:10.1]} 27... cxd6 {[%clk 0:00:49.3]} 28. Rc7
{[%clk 0:01:10.2]} 28... Qd8 {[%clk 0:00:40.6]} 29. Rxb7 {[%clk 0:00:45.7]}
29... h5 {[%clk 0:00:39.9]} 30. Rc1 {[%clk 0:00:45.6]} 30... Rc8 {[%clk
0:00:36.5]} 31. Rc6 {[%clk 0:00:41.7]} 31... Rxc6 {[%clk 0:00:34.5]} 32. dxc6
{[%clk 0:00:42.6]} 32... d5 {[%clk 0:00:34.8]} 33. Rd7 {[%clk 0:00:38.1]} 33...
Qc8 {[%clk 0:00:32.4]} 34. b5 {[%clk 0:00:37.5]} 34... d4 {[%clk 0:00:30.7]} 35.
Bg5 {[%clk 0:00:36.9]} 35... d3 {[%clk 0:00:29.1]} 36. Qe3 {[%clk 0:00:32.8]}
36... Rf4 {[%clk 0:00:20.1]} 37. Rd8+ {[%clk 0:00:26.5]} 37... Qxd8 {[%clk
0:00:19]} 38. Bxd8 {[%clk 0:00:27.4]} 38... Rd4 {[%clk 0:00:19.1]} 39. Qd2
{[%clk 0:00:13.2]} 39... Rxd8 {[%clk 0:00:18]} 40. c7 {[%clk 0:00:13.8]} 40...
Rc8 {[%clk 0:00:15.3]} 41. b6 {[%clk 0:00:14.2]} 41... Kh7 {[%clk 0:00:07.9]}
42. b7 {[%clk 0:00:13.9]} 42... Rxc7 {[%clk 0:00:08.4]} 43. b8=Q {[%clk
0:00:13.5]} 43... Rc2 {[%clk 0:00:09]} 44. Qbb4 {[%clk 0:00:10.5]} 44... e4
{[%clk 0:00:08.1]} 45. Qxc2 {[%clk 0:00:09.2]} 45... dxc2 {[%clk 0:00:07.9]} 46.
Qd2 {[%clk 0:00:09.7]} 46... e3 {[%clk 0:00:07.5]} 47. fxe3 {[%clk 0:00:10.1]}
47... Bb2 {[%clk 0:00:07.1]} 48. Ne2 {[%clk 0:00:10.5]} 48... a3 {[%clk
0:00:05.5]} 49. Kf2 {[%clk 0:00:09.2]} 49... Be4 {[%clk 0:00:04.9]} 50. h3
{[%clk 0:00:08.4]} 50... gxh3 {[%clk 0:00:04.5]} 51. gxh3 {[%clk 0:00:09.3]}
51... Kg7 {[%clk 0:00:04.3]} 52. Ng3 {[%clk 0:00:09.4]} 52... Bg6 {[%clk
0:00:04]} 53. e4 {[%clk 0:00:09.4]} 53... c1=Q {[%clk 0:00:03.6]} 54. Qd7+
{[%clk 0:00:07.1]} 54... Kg8 {[%clk 0:00:03.7]} 55. Qd8+ {[%clk 0:00:06.2]}
55... Kf7 {[%clk 0:00:03.8]} 56. Qd7+ {[%clk 0:00:05.9]} 56... Kf8 {[%clk
0:00:04]} 57. Qd6+ {[%clk 0:00:03.5]} 57... Kg7 {[%clk 0:00:03.8]} 58. Qe7+
{[%clk 0:00:03.5]} 58... Kh6 {[%clk 0:00:03.1]} 59. Qf8+ {[%clk 0:00:03.3]}
59... Bg7 {[%clk 0:00:02.7]} 60. Qf3 {[%clk 0:00:01.1]} 60... Qd2+ {[%clk
0:00:02.3]} 0-1

[Event "Late-Titled-Tuesday-Blitz-January-23-2024"]
[Site "Chess.com"]
[Date "2024.01.23"]
[Round "5"]
[White "mightysmasher"]
[Black "dodoucb"]
[Result "0-1"]
[WhiteElo "2581"]
[BlackElo "2470"]
[TimeControl "180+1"]
[EndTime "14:55:59 PST"]
[Termination "dodoucb won by checkmate"]

1. e4 {[%clk 0:03:00.9]} 1... c6 {[%clk 0:03:00.1]} 2. d4 {[%clk 0:02:59.8]}
2... d5 {[%clk 0:03:01]} 3. Nd2 {[%clk 0:03:00.2]} 3... dxe4 {[%clk 0:03:01.2]}
4. Nxe4 {[%clk 0:03:01.1]} 4... Bf5 {[%clk 0:03:01.6]} 5. Ng3 {[%clk 0:03:01.1]}
5... Bg6 {[%clk 0:03:02.2]} 6. h4 {[%clk 0:03:01.2]} 6... h6 {[%clk 0:03:02.1]}
7. Nf3 {[%clk 0:03:01.6]} 7... Nd7 {[%clk 0:03:01.6]} 8. c3 {[%clk 0:03:01.8]}
8... e6 {[%clk 0:03:01.3]} 9. Bd3 {[%clk 0:03:01.8]} 9... Bxd3 {[%clk
0:03:01.1]} 10. Qxd3 {[%clk 0:03:02.7]} 10... Ngf6 {[%clk 0:03:00.4]} 11. Be3
{[%clk 0:03:02.2]} 11... Bd6 {[%clk 0:02:59.5]} 12. O-O-O {[%clk 0:03:01.8]}
12... Qa5 {[%clk 0:02:58.3]} 13. Kb1 {[%clk 0:03:01.1]} 13... O-O-O {[%clk
0:02:58.6]} 14. Ne4 {[%clk 0:03:00.7]} 14... Nxe4 {[%clk 0:02:56]} 15. Qxe4
{[%clk 0:03:01.6]} 15... Rhe8 {[%clk 0:02:51.1]} 16. Bd2 {[%clk 0:02:57.3]}
16... Nf6 {[%clk 0:02:43.9]} 17. Qc2 {[%clk 0:02:56.1]} 17... Ng4 {[%clk
0:02:33.9]} 18. Rhf1 {[%clk 0:02:52.8]} 18... Qf5 {[%clk 0:02:33.1]} 19. Qxf5
{[%clk 0:02:48.1]} 19... exf5 {[%clk 0:02:32.8]} 20. Ng1 {[%clk 0:02:32.7]}
20... Re6 {[%clk 0:02:19.8]} 21. Kc2 {[%clk 0:02:18.2]} 21... Rde8 {[%clk
0:02:04.8]} 22. Kd3 {[%clk 0:02:14.8]} 22... Be7 {[%clk 0:01:21]} 23. g3 {[%clk
0:02:01.9]} 23... Bf6 {[%clk 0:01:04.5]} 24. Kc2 {[%clk 0:01:27.8]} 24... Bd8
{[%clk 0:00:47.7]} 25. Rde1 {[%clk 0:01:18.1]} 25... Bb6 {[%clk 0:00:37.1]} 26.
Rxe6 {[%clk 0:01:14.4]} 26... Rxe6 {[%clk 0:00:37.8]} 27. Nh3 {[%clk 0:01:07.4]}
27... Bc7 {[%clk 0:00:28.2]} 28. Re1 {[%clk 0:00:59.8]} 28... Kd7 {[%clk
0:00:26.3]} 29. Rxe6 {[%clk 0:00:56.4]} 29... fxe6 {[%clk 0:00:26.3]} 30. Kd3
{[%clk 0:00:54.3]} 30... e5 {[%clk 0:00:22]} 31. dxe5 {[%clk 0:00:53.2]} 31...
Nxe5+ {[%clk 0:00:22.9]} 32. Ke2 {[%clk 0:00:53.3]} 32... Nc4 {[%clk 0:00:21.2]}
33. Bc1 {[%clk 0:00:53.2]} 33... Ke6 {[%clk 0:00:19.6]} 34. b3 {[%clk
0:00:52.4]} 34... Nb6 {[%clk 0:00:18.8]} 35. c4 {[%clk 0:00:52.1]} 35... Nd7
{[%clk 0:00:18.8]} 36. Bb2 {[%clk 0:00:51.3]} 36... g6 {[%clk 0:00:17.6]} 37.
Ng1 {[%clk 0:00:50.3]} 37... Be5 {[%clk 0:00:16.7]} 38. Bc1 {[%clk 0:00:49.7]}
38... Bg7 {[%clk 0:00:15.4]} 39. Nf3 {[%clk 0:00:49.3]} 39... b5 {[%clk
0:00:15.8]} 40. Kd3 {[%clk 0:00:48.1]} 40... Nc5+ {[%clk 0:00:15.5]} 41. Ke2
{[%clk 0:00:43.3]} 41... Ne4 {[%clk 0:00:15.8]} 42. cxb5 {[%clk 0:00:42.3]}
42... cxb5 {[%clk 0:00:16.5]} 43. Be3 {[%clk 0:00:40.2]} 43... a6 {[%clk
0:00:16.5]} 44. a3 {[%clk 0:00:38.1]} 44... Bf8 {[%clk 0:00:15.4]} 45. Nd4+
{[%clk 0:00:35]} 45... Kd5 {[%clk 0:00:14.8]} 46. Nc2 {[%clk 0:00:34]} 46...
Nc3+ {[%clk 0:00:13.9]} 47. Kd3 {[%clk 0:00:33.5]} 47... Ne4 {[%clk 0:00:13.7]}
48. b4 {[%clk 0:00:25.5]} 48... Bg7 {[%clk 0:00:11.8]} 49. Nd4 {[%clk 0:00:16]}
49... Nd6 {[%clk 0:00:07.9]} 50. Nc2 {[%clk 0:00:11.1]} 50... Nc4 {[%clk
0:00:08.3]} 51. Bc1 {[%clk 0:00:10.2]} 51... h5 {[%clk 0:00:07.2]} 52. Ne3+
{[%clk 0:00:03.5]} 52... Nxe3 {[%clk 0:00:07.7]} 53. Bxe3 {[%clk 0:00:03.9]}
53... Bb2 {[%clk 0:00:07.6]} 54. Kc2 {[%clk 0:00:03.2]} 54... Be5 {[%clk
0:00:05.9]} 55. Kb3 {[%clk 0:00:03.6]} 55... Ke4 {[%clk 0:00:05.8]} 56. Bc5
{[%clk 0:00:03.3]} 56... Bd4 {[%clk 0:00:06]} 57. Bxd4 {[%clk 0:00:02.1]} 57...
Kxd4 {[%clk 0:00:06.3]} 58. a4 {[%clk 0:00:03]} 58... Ke4 {[%clk 0:00:06.6]} 59.
axb5 {[%clk 0:00:03.2]} 59... axb5 {[%clk 0:00:07.5]} 60. Kc3 {[%clk 0:00:03.7]}
60... Kf3 {[%clk 0:00:07.7]} 61. Kd4 {[%clk 0:00:04.1]} 61... Kxf2 {[%clk
0:00:08.1]} 62. Kc5 {[%clk 0:00:05]} 62... Kxg3 {[%clk 0:00:08.7]} 63. Kxb5
{[%clk 0:00:05.9]} 63... f4 {[%clk 0:00:09.6]} 64. Kc4 {[%clk 0:00:06.2]} 64...
f3 {[%clk 0:00:10.4]} 65. b5 {[%clk 0:00:07.1]} 65... f2 {[%clk 0:00:11.2]} 66.
b6 {[%clk 0:00:07.4]} 66... f1=Q+ {[%clk 0:00:12.1]} 67. Kc5 {[%clk 0:00:07.6]}
67... Qf8+ {[%clk 0:00:12.5]} 68. Kc6 {[%clk 0:00:07.4]} 68... Qb8 {[%clk
0:00:13.4]} 69. b7 {[%clk 0:00:07.4]} 69... Kxh4 {[%clk 0:00:14.3]} 70. Kb6
{[%clk 0:00:07.8]} 70... Kg3 {[%clk 0:00:15.2]} 71. Kc6 {[%clk 0:00:08.7]} 71...
h4 {[%clk 0:00:16]} 72. Kb6 {[%clk 0:00:09.6]} 72... h3 {[%clk 0:00:16.7]} 73.
Kc6 {[%clk 0:00:10.5]} 73... h2 {[%clk 0:00:17.5]} 74. Kb6 {[%clk 0:00:11.4]}
74... h1=Q {[%clk 0:00:18]} 75. Ka5 {[%clk 0:00:11.4]} 75... Qhxb7 {[%clk
0:00:17.5]} 76. Ka4 {[%clk 0:00:11.9]} 76... Q8a8# {[%clk 0:00:18.4]} 0-1

[Event "Late-Titled-Tuesday-Blitz-January-23-2024"]
[Site "Chess.com"]
[Date "2024.01.23"]
[Round "5"]
[White "Herman-NY"]
[Black "karinachess1"]
[Result "1-0"]
[WhiteElo "2487"]
[BlackElo "2612"]
[TimeControl "180+1"]
[EndTime "14:56:00 PST"]
[Termination "Herman-NY won by resignation"]

1. e4 {[%clk 0:02:59]} 1... e5 {[%clk 0:03:00.1]} 2. Nf3 {[%clk 0:02:59]} 2...
Nc6 {[%clk 0:03:00.7]} 3. Bb5 {[%clk 0:02:57.7]} 3... Nf6 {[%clk 0:03:00.7]} 4.
d3 {[%clk 0:02:57.6]} 4... d6 {[%clk 0:02:54.3]} 5. O-O {[%clk 0:02:54]} 5... g6
{[%clk 0:02:54.5]} 6. a4 {[%clk 0:02:51.7]} 6... Bg7 {[%clk 0:02:54.7]} 7. a5
{[%clk 0:02:43.3]} 7... a6 {[%clk 0:02:54.7]} 8. Bc4 {[%clk 0:02:43.7]} 8... O-O
{[%clk 0:02:54.7]} 9. Re1 {[%clk 0:02:31.2]} 9... Kh8 {[%clk 0:02:45.5]} 10. Bg5
{[%clk 0:02:04.3]} 10... Qe8 {[%clk 0:02:42.7]} 11. Nc3 {[%clk 0:01:45.5]} 11...
Nh5 {[%clk 0:02:41.9]} 12. Nd5 {[%clk 0:01:41.4]} 12... Qd7 {[%clk 0:02:42.1]}
13. Nh4 {[%clk 0:00:58.3]} 13... f6 {[%clk 0:02:34.8]} 14. Bd2 {[%clk
0:00:44.8]} 14... Ne7 {[%clk 0:02:35]} 15. Nxe7 {[%clk 0:00:32.7]} 15... Qxe7
{[%clk 0:02:35.9]} 16. Nf5 {[%clk 0:00:31.8]} 16... gxf5 {[%clk 0:02:11.5]} 17.
Qxh5 {[%clk 0:00:31.5]} 17... fxe4 {[%clk 0:02:08.2]} 18. dxe4 {[%clk 0:00:15]}
18... f5 {[%clk 0:02:06.9]} 19. Bg5 {[%clk 0:00:13.6]} 19... Qe8 {[%clk
0:01:53.6]} 20. Qxe8 {[%clk 0:00:06.3]} 20... Rxe8 {[%clk 0:01:54.5]} 21. exf5
{[%clk 0:00:05.3]} 21... Bxf5 {[%clk 0:01:55.4]} 22. c3 {[%clk 0:00:03.8]} 22...
c6 {[%clk 0:01:53.9]} 23. Ra3 {[%clk 0:00:03]} 23... d5 {[%clk 0:01:54.1]} 24.
Bf1 {[%clk 0:00:03.6]} 24... Rf8 {[%clk 0:01:43.8]} 25. Rb3 {[%clk 0:00:03.7]}
25... Rf7 {[%clk 0:01:44.4]} 26. g3 {[%clk 0:00:02.3]} 26... Raf8 {[%clk
0:01:38.9]} 27. Be3 {[%clk 0:00:02.4]} 27... Be6 {[%clk 0:01:31.9]} 28. Bc5
{[%clk 0:00:02.3]} 28... Re8 {[%clk 0:01:29]} 29. Rb4 {[%clk 0:00:01.6]} 29...
Bc8 {[%clk 0:01:25.6]} 30. Be2 {[%clk 0:00:02]} 30... Bf8 {[%clk 0:01:04.2]} 31.
Bh5 {[%clk 0:00:02.3]} 31... Bxc5 {[%clk 0:01:03.7]} 32. Bxf7 {[%clk 0:00:02.7]}
32... Rf8 {[%clk 0:01:04]} 33. Bh5 {[%clk 0:00:01.3]} 33... Bxb4 {[%clk
0:01:03]} 34. cxb4 {[%clk 0:00:02.2]} 34... e4 {[%clk 0:00:59.1]} 35. f3 {[%clk
0:00:02.1]} 35... Bf5 {[%clk 0:00:50.7]} 36. fxe4 {[%clk 0:00:01.8]} 36... Bxe4
{[%clk 0:00:49.5]} 37. Rf1 {[%clk 0:00:01.8]} 37... Kg7 {[%clk 0:00:43.8]} 38.
Rxf8 {[%clk 0:00:01.8]} 38... Kxf8 {[%clk 0:00:44.7]} 39. Kf2 {[%clk 0:00:02.4]}
39... Ke7 {[%clk 0:00:45.2]} 40. Ke3 {[%clk 0:00:03.1]} 40... Kd6 {[%clk
0:00:43.6]} 41. Kd4 {[%clk 0:00:03.8]} 41... Bc2 {[%clk 0:00:36.6]} 42. h4
{[%clk 0:00:03.4]} 42... Bb1 {[%clk 0:00:35.8]} 43. Be2 {[%clk 0:00:03.7]} 43...
h6 {[%clk 0:00:34.7]} 44. g4 {[%clk 0:00:04.2]} 44... Ke7 {[%clk 0:00:34.6]} 45.
g5 {[%clk 0:00:05.1]} 45... hxg5 {[%clk 0:00:34.7]} 46. hxg5 {[%clk 0:00:06]}
46... Bf5 {[%clk 0:00:32.7]} 47. Bh5 {[%clk 0:00:05.7]} 47... Kd6 {[%clk
0:00:25.8]} 48. g6 {[%clk 0:00:05.9]} 48... Be6 {[%clk 0:00:26.3]} 49. g7 {[%clk
0:00:05.6]} 49... Bg8 {[%clk 0:00:26.6]} 50. Bg6 {[%clk 0:00:05.8]} 50... Ke6
{[%clk 0:00:26.5]} 51. Bd3 {[%clk 0:00:05.1]} 51... Kf6 {[%clk 0:00:26]} 52. Kc5
{[%clk 0:00:06]} 52... Ke5 {[%clk 0:00:17]} 53. Kb6 {[%clk 0:00:05.6]} 53... Kd4
{[%clk 0:00:17.5]} 54. Bf5 {[%clk 0:00:05.3]} 54... Kc4 {[%clk 0:00:12.8]} 55.
Kxb7 {[%clk 0:00:05.5]} 55... Kxb4 {[%clk 0:00:13.4]} 56. Kxa6 {[%clk 0:00:06]}
56... c5 {[%clk 0:00:09]} 57. Kb6 {[%clk 0:00:06.5]} 57... d4 {[%clk 0:00:07]}
58. a6 {[%clk 0:00:06.9]} 58... c4 {[%clk 0:00:07.7]} 59. a7 {[%clk 0:00:07.3]}
59... Bd5 {[%clk 0:00:08.1]} 60. g8=Q {[%clk 0:00:07.4]} 60... Bxg8 {[%clk
0:00:08.3]} 61. a8=Q {[%clk 0:00:08]} 61... c3 {[%clk 0:00:08.5]} 62. Qa5+
{[%clk 0:00:08.6]} 62... Kb3 {[%clk 0:00:08.1]} 63. bxc3 {[%clk 0:00:09]} 63...
dxc3 {[%clk 0:00:08.4]} 64. Qe5 {[%clk 0:00:08.9]} 64... Bc4 {[%clk 0:00:08]}
65. Qe3 {[%clk 0:00:08.7]} 65... Kb2 {[%clk 0:00:08.2]} 66. Qf2+ {[%clk
0:00:08.8]} 66... Kb3 {[%clk 0:00:08.6]} 67. Qc2+ {[%clk 0:00:09.5]} 67... Kb4
{[%clk 0:00:09.3]} 68. Qc1 {[%clk 0:00:10.4]} 68... Bb3 {[%clk 0:00:09.9]} 69.
Bc2 {[%clk 0:00:10.9]} 69... Bc4 {[%clk 0:00:09.6]} 70. Kc7 {[%clk 0:00:10.9]}
70... Kc5 {[%clk 0:00:09.1]} 71. Kd8 {[%clk 0:00:10.9]} 71... Kd4 {[%clk
0:00:09.5]} 72. Ke7 {[%clk 0:00:11.8]} 72... Bd5 {[%clk 0:00:08.8]} 73. Kf6
{[%clk 0:00:12.3]} 73... Kc4 {[%clk 0:00:09.2]} 74. Kf5 {[%clk 0:00:12.9]} 74...
Bc6 {[%clk 0:00:09.4]} 75. Kf4 {[%clk 0:00:13.5]} 75... Bd5 {[%clk 0:00:09.7]}
76. Ke3 {[%clk 0:00:14.1]} 76... Bc6 {[%clk 0:00:09.6]} 77. Qb1 {[%clk
0:00:14.5]} 77... Bb5 {[%clk 0:00:08.7]} 78. Qb3+ {[%clk 0:00:14.7]} 1-0